bitfinex/quotes_ETHUSD_20250622
["timestamp","ask_amount","ask_price","bid_price","bid_amount"]
[1750586078109,48.0,2254.0,2250.5,10.0]
[1750586078110,4.047,2253.0,2250.5,10.0]
[1750586078441,10.529,2252.4,2252.3,4.43990587]
[1750586078609,11.5829,2252.4,2252.3,4.43990587]
[1750586078803,22.2699,2252.4,2252.3,4.43990587]
[1750586079112,22.2699,2252.4,2251.9,4.44053308]
[1750586079334,11.25335379,2252.1,2251.0,0.8201]
[1750586079644,4.047,2252.0,2251.4,4.44163932]
[1750586079806,16.08803538,2251.9,2251.3,0.04441256]
[1750586080007,16.08803538,2251.9,2251.1,4.44212466]
[1750586080208,16.08803538,2251.9,2250.6,0.55]
[1750586080408,16.08803538,2251.9,2251.3,4.44172473]
[1750586080604,10.0,2251.8,2251.1,4.4421177]
[1750586080805,2.60880354,2251.7,2251.3,4.44174235]
[1750586081039,2.60880354,2251.7,2250.7,0.55]
[1750586081245,10.0,2251.6,2251.2,4.44207508]
[1750586081408,10.0,2251.6,2250.5,0.7874]
[1750586081409,0.8307,2251.5,2250.5,0.7874]
[1750586081610,0.8307,2251.5,2249.7,14.44490306]
[1750586081611,10.0,2251.3,2250.7,4.44298566]
[1750586081840,12.7311,2251.2,2250.7,4.44298566]
[1750586082013,4.045,2251.1,2250.7,4.4430585]
[1750586082214,4.045,2251.1,2251.0,4.44247001]
[1750586082636,12.7311,2251.2,2251.1,4.44227266]
[1750586082637,10.683,2251.2,2251.1,4.44227266]
[1750586082835,25.193,2251.2,2251.0,4.44243833]
[1750586083040,25.193,2251.2,2251.1,4.44227266]
[1750586083231,14.728,2251.2,2251.1,4.44227266]
[1750586083425,25.168,2251.2,2250.5,4.443457]
[1750586083630,26.6408,2251.2,2250.2,4.44404941]
[1750586083952,26.6408,2251.2,2250.4,4.44352437]
[1750586083953,4.44246265,2251.1,2250.4,4.44352437]
[1750586084247,0.8307,2250.8,2249.6,0.7874]
[1750586084457,14.46,2250.7,2250.4,4.44351232]
[1750586084615,14.46,2250.7,2250.3,4.44381127]
[1750586084812,14.46,2250.7,2249.6,0.7874]
[1750586085113,0.7759,2250.0,2249.4,4.44560981]
[1750586085329,11.25335379,2249.7,2248.5,1.33427936]
[1750586085649,11.25335379,2249.7,2249.0,4.44627255]
[1750586085650,1.12533538,2249.6,2249.0,4.44627255]
[1750586085849,1.12533538,2249.6,2249.2,4.44590783]
[1750586086151,14.429,2249.5,2248.9,4.44645203]
[1750586086324,18.8745438,2249.5,2248.8,4.44664278]
[1750586086850,10.0,2249.2,2248.6,0.37124548]
[1750586087081,4.44701383,2248.7,2248.6,0.37124548]
[1750586087364,21.4569,2248.7,2248.0,0.04447988]
[1750586087532,21.4569,2248.7,2248.2,4.44788823]
[1750586087533,10.363,2248.6,2248.2,4.44788823]
[1750586087865,10.363,2248.6,2247.4,14.44958618]
[1750586087866,10.0,2248.2,2247.6,4.44915672]
[1750586088154,10.363,2248.6,2247.7,4.49341829]
[1750586088155,14.288,2248.1,2247.7,4.49341829]
[1750586088359,10.352,2248.0,2247.7,4.49341829]
[1750586088725,10.352,2248.0,2247.9,4.44859646]
[1750586088921,11.25335379,2248.6,2248.0,4.44827772]
[1750586089156,10.681,2248.1,2248.0,4.44827772]
[1750586089322,24.941,2248.1,2248.0,4.44827772]
[1750586089524,24.941,2248.1,2247.9,4.44841839]
[1750586089835,24.941,2248.1,2248.0,4.44839857]
[1750586090358,24.941,2248.1,2243.7,21.554]
[1750586090359,24.941,2248.1,2247.1,10.0]
[1750586090659,14.244,2248.0,2247.7,4.44887229]
[1750586090859,10.681,2248.1,2247.9,4.44859646]
[1750586091168,14.235,2248.0,2247.6,4.44911418]
[1750586091470,10.681,2248.1,2247.9,4.44859646]
[1750586091634,10.681,2248.1,2247.8,4.44879437]
[1750586091635,14.238,2247.9,2247.8,4.44879437]
[1750586091964,24.906,2248.1,2248.0,4.44839857]
[1750586092132,0.7759,2248.7,2248.6,4.44721159]
[1750586092340,14.9949,2248.7,2248.4,0.04447272]
[1750586092537,14.219,2248.7,2248.4,0.04447272]
[1750586092746,14.219,2248.7,2248.0,4.44823862]
[1750586092747,16.78689,2248.7,2247.3,0.8108]
[1750586092938,16.78689,2248.7,2248.0,4.44825264]
[1750586092939,21.23398862,2248.7,2248.0,4.44825264]
[1750586093139,4.44733599,2248.6,2247.9,4.44858883]
[1750586093429,4.44733599,2248.6,2248.0,4.44839059]
[1750586093634,2.1234226,2248.5,2247.9,4.44849513]
[1750586093833,16.78689,2248.7,2248.0,4.44832672]
[1750586094138,0.7563,2248.5,2247.3,0.8108]
[1750586094382,0.7563,2248.5,2248.0,4.44825408]
[1750586094664,10.684,2248.8,2248.1,4.4925425]
[1750586094833,10.684,2248.8,2247.5,4.44928974]
[1750586094834,3.937,2248.4,2247.5,4.44928974]
[1750586095041,10.249,2248.3,2248.1,4.44804777]
[1750586095267,10.249,2248.3,2247.7,4.4489923]
[1750586095268,21.50235379,2248.3,2246.9,10.8272]
[1750586095566,21.50235379,2248.3,2247.9,4.44857991]
[1750586095567,0.06087325,2248.2,2247.9,4.44857991]
[1750586095773,0.00953382,2249.6,2249.5,5.82263231]
[1750586096071,0.7752,2251.0,2249.5,5.82263231]
[1750586096072,0.7752,2251.0,2250.9,4.44266737]
[1750586096282,11.5942,2251.0,2250.9,4.44266737]
[1750586096432,0.7752,2251.0,2250.9,4.44266737]
[1750586096629,10.813,2251.0,2250.5,4.44332741]
[1750586096961,10.813,2251.0,2250.6,4.44322169]
[1750586096962,11.8943,2251.0,2250.6,4.44322169]
[1750586097276,11.8943,2251.0,2249.8,4.44468482]
[1750586097277,5.3553,2251.0,2249.8,4.44468482]
[1750586097422,10.804,2250.9,2249.8,4.99483954]
[1750586097622,10.804,2250.9,2250.6,4.44325599]
[1750586097827,10.804,2250.9,2250.8,4.44286475]
[1750586100550,10.755,2250.9,2250.8,4.44286475]
[1750586100752,10.726,2250.9,2250.8,4.44286475]
[1750586101085,0.7752,2251.5,2251.4,4.44168073]
[1750586101242,0.7752,2251.5,2250.7,4.44303795]
[1750586101243,4.272,2251.5,2250.7,4.44303795]
[1750586101444,11.5181,2251.9,2251.2,4.44204902]
[1750586101641,11.5181,2251.9,2251.8,4.44089173]
[1750586101845,11.5181,2251.9,2250.9,4.44266737]
[1750586101846,10.0,2251.8,2250.6,4.44318814]
[1750586102040,10.0,2251.8,2251.1,4.44215275]
[1750586102041,14.4409848,2251.8,2251.1,4.44215275]
[1750586102241,10.0,2251.8,2251.2,4.4420509]
[1750586102452,10.0,2251.8,2251.1,0.04441968]
[1750586102740,26.4961,2251.9,2251.6,4.44113768]
[1750586102741,24.965,2251.7,2251.6,4.44113768]
[1750586102948,14.965,2251.7,2251.6,4.44113768]
[1750586103291,14.965,2251.7,2250.4,5.21612201]
[1750586103572,21.25335379,2251.6,2250.1,4.44424692]
[1750586103772,21.25335379,2251.6,2251.0,4.44232661]
[1750586103973,25.69470753,2251.6,2250.8,4.44276526]
[1750586104175,14.44172676,2251.4,2250.7,4.44296178]
[1750586104387,10.0,2251.2,2250.6,4.44307595]
[1750586104591,0.8299,2251.1,2250.7,4.44295411]
[1750586104887,0.8299,2251.1,2250.3,4.44385193]
[1750586104888,0.8299,2251.1,2250.6,4.44319274]
[1750586105056,0.8299,2251.1,2250.4,4.44355824]
[1750586105242,2.65253316,2251.0,2250.5,4.44342287]
[1750586105588,2.65253316,2251.0,2249.6,0.8144]
[1750586105589,14.162,2250.9,2249.7,4.44503711]
[1750586105747,14.162,2250.9,2250.6,4.44322533]
[1750586105748,10.679,2250.8,2250.6,4.44322533]
[1750586105951,10.679,2250.8,2250.6,4.44314214]
[1750586106297,10.679,2250.8,2250.4,4.44346581]
[1750586106298,10.679,2250.8,2250.4,4.44351395]
[1750586106577,10.679,2250.8,2248.9,10.0]
[1750586106578,10.0,2250.7,2249.8,4.44483954]
[1750586106785,10.0,2250.7,2250.5,4.44345395]
[1750586106948,10.0,2250.7,2249.8,4.44483954]
[1750586106949,10.679,2250.8,2250.7,4.44306215]
[1750586107144,21.271,2250.8,2250.4,4.44359661]
[1750586107459,21.271,2250.8,2249.9,4.44464198]
[1750586107460,21.271,2250.8,2250.6,4.44319072]
[1750586107677,21.271,2250.8,2250.7,4.44306215]
[1750586107859,25.419,2250.8,2250.7,4.44306215]
[1750586108063,10.679,2250.8,2250.7,4.44306215]
[1750586108364,25.409,2250.8,2250.7,4.44306215]
[1750586108996,25.409,2250.8,2249.7,4.44503711]
[1750586109143,25.409,2250.8,2250.4,4.44356461]
[1750586109351,25.409,2250.8,2250.4,4.44362523]
[1750586109658,25.409,2250.8,2250.4,4.44356108]
[1750586109980,25.409,2250.8,2250.4,4.44351491]
[1750586110177,25.409,2250.8,2250.3,4.44377139]
[1750586110383,27.51189208,2250.8,2250.4,4.44358094]
[1750586110546,10.0,2250.7,2250.3,4.4437476]
[1750586110879,10.0,2250.7,2249.6,0.8144]
[1750586110880,10.0,2250.7,2249.8,4.44465147]
[1750586111047,10.0,2250.7,2249.9,0.04444087]
[1750586111248,10.0,2250.7,2250.3,4.44383103]
[1750586111448,14.19545702,2250.7,2249.3,0.44547144]
[1750586111677,14.543,2250.6,2250.4,4.44355834]
[1750586111979,12.78189208,2250.8,2250.0,4.44443182]
[1750586112177,10.0,2250.7,2250.6,4.44325957]
[1750586112382,10.679,2250.8,2250.7,4.44306215]
[1750586112555,35.208,2250.8,2250.1,4.44405138]
[1750586112746,35.208,2250.8,2250.3,4.4437354]
[1750586112946,39.60234887,2250.8,2250.4,4.44363263]
[1750586113377,35.208,2250.8,2250.2,4.44388299]
[1750586113583,0.7967,2250.5,2249.2,0.7879]
[1750586113785,4.44473902,2249.9,2248.9,4.44661834]
[1750586113984,10.7967,2250.1,2249.2,4.44594141]
[1750586114161,0.7967,2250.1,2248.4,0.7879]
[1750586114351,14.495,2250.0,2248.9,4.44661834]
[1750586114553,0.7967,2250.1,2249.1,4.44621508]
[1750586114748,0.7967,2250.1,2249.9,4.44456536]
[1750586114952,4.048,2250.1,2250.0,4.44444444]
[1750586115256,14.491,2250.1,2250.0,4.44444444]
[1750586115460,14.491,2250.1,2249.9,4.44453879]
[1750586115768,4.048,2250.1,2250.0,4.44444444]
[1750586115984,14.479,2250.1,2249.9,4.4445617]
[1750586116182,14.479,2250.1,2250.0,4.44444444]
[1750586117303,14.479,2250.1,2249.9,4.4445617]
[1750586117304,14.479,2250.1,2249.9,4.44454862]
[1750586117503,14.479,2250.1,2250.0,4.44444444]
[1750586118670,0.8271,2250.6,2248.9,14.44648137]
[1750586118865,0.8271,2250.6,2250.1,4.44424692]
[1750586118866,3.941,2250.2,2250.1,4.44424692]
[1750586119267,14.3,2250.2,2250.1,4.44424692]
[1750586120088,14.3,2250.2,2250.1,4.48868535]
[1750586120254,3.941,2250.2,2250.1,4.44424692]
[1750586120455,3.941,2250.2,2250.1,5.85848593]
[1750586120649,0.7629,2251.0,2250.9,4.44266737]
[1750586120888,14.268,2251.0,2250.9,4.44266737]
[1750586121252,14.26,2251.0,2250.9,4.44266737]
[1750586121580,3.941,2251.7,2251.6,4.44128619]
[1750586121891,14.62074276,2251.7,2251.6,4.44128619]
[1750586122197,14.61674276,2251.7,2251.6,4.44128619]
[1750586122688,10.67074276,2251.7,2251.6,4.44128619]
[1750586123163,10.65074276,2251.7,2251.6,4.44128619]
[1750586123351,10.279,2251.7,2251.6,4.44128619]
[1750586123554,10.272,2251.8,2251.6,4.44110408]
[1750586123755,3.94,2252.2,2252.1,4.44030016]
[1750586123955,14.27330878,2252.2,2252.1,4.44030016]
[1750586124354,14.27330878,2252.2,2252.0,4.44045961]
[1750586124557,14.27330878,2252.2,2252.1,4.44030016]
[1750586124757,4.00630878,2252.2,2252.1,4.44030016]
[1750586125094,14.25930878,2252.2,2252.1,4.44030016]
[1750586125303,14.25930878,2252.2,2252.0,4.44036275]
[1750586125598,14.25930878,2252.2,2252.1,4.44030016]
[1750586125751,14.24630878,2252.2,2252.1,4.44030016]
[1750586125953,14.24630878,2252.2,2250.6,0.44015392]
[1750586125954,10.0,2252.1,2250.6,0.44015392]
[1750586126194,15.45791245,2252.2,2249.5,0.8124]
[1750586126195,4.44208225,2251.2,2249.5,0.8124]
[1750586126363,0.55,2251.5,2249.1,0.8124]
[1750586126364,0.7656,2250.2,2249.1,0.8124]
[1750586126569,0.7656,2250.2,2249.0,0.44466183]
[1750586126570,30.6991893,2250.1,2249.4,4.4456285]
[1750586126767,10.0,2249.9,2249.7,4.4449135]
[1750586127084,14.112,2250.0,2249.9,4.44464198]
[1750586128792,14.103,2250.0,2249.9,4.44464198]
[1750586129515,14.103,2250.0,2249.8,4.44469956]
[1750586129686,14.103,2250.0,2249.9,4.44464198]
[1750586130180,14.06,2250.0,2249.9,4.44464198]
[1750586130707,0.7656,2250.6,2249.6,4.44520638]
[1750586131005,0.7656,2250.6,2249.9,4.44464198]
[1750586131006,3.83,2250.0,2249.9,4.44464198]
[1750586131204,14.044,2250.0,2249.9,4.44464198]
[1750586132514,3.83,2250.0,2249.9,4.44464198]
[1750586132701,14.024,2250.0,2249.9,4.44464198]
[1750586132904,10.181,2250.0,2249.8,4.44481011]
[1750586133208,10.181,2250.0,2249.9,4.44464198]
[1750586134719,3.83,2250.1,2250.0,4.44444444]
[1750586134868,13.975,2250.1,2250.0,4.44444444]
[1750586136710,13.975,2250.1,2249.9,4.44464198]
[1750586136711,0.7774,2250.0,2248.6,0.8293]
[1750586136924,11.25335379,2249.6,2248.8,4.44667689]
[1750586137079,20.803,2249.5,2248.9,4.44652474]
[1750586137273,10.677,2249.5,2249.2,4.44585697]
[1750586137474,13.946,2249.4,2249.0,4.4462772]
[1750586137710,0.7774,2249.2,2248.5,4.44723845]
[1750586137914,10.0,2249.0,2248.2,0.8293]
[1750586138072,10.112,2248.9,2248.6,4.44706816]
[1750586138276,10.112,2248.9,2248.5,4.44730149]
[1750586138812,10.112,2248.9,2248.4,4.44759539]
[1750586139508,10.112,2248.9,2247.8,0.8293]
[1750586139719,10.112,2248.9,2248.7,4.44691455]
[1750586140216,0.7774,2249.2,2248.6,0.04447111]
[1750586140512,0.7774,2249.2,2248.8,4.44681607]
[1750586140513,3.723,2248.9,2248.8,4.44681607]
[1750586142321,10.677,2249.5,2248.8,5.41947519]
[1750586142493,14.401,2249.5,2249.4,4.44562994]
[1750586142693,24.428,2249.5,2249.4,4.44562994]
[1750586142886,24.428,2249.5,2247.9,0.8328]
[1750586143094,0.7639,2249.4,2248.0,0.04445421]
[1750586143292,13.72762228,2249.4,2248.9,4.44646765]
[1750586143488,10.075,2249.3,2248.2,4.44800284]
[1750586143688,10.075,2249.3,2249.2,4.44592476]
[1750586144117,10.075,2249.3,2247.9,10.8328]
[1750586144294,10.075,2249.3,2248.8,4.44679121]
[1750586145179,10.075,2249.3,2248.5,4.44722697]
[1750586145180,4.44614392,2249.2,2248.5,4.44722697]
[1750586145413,1.89669987,2249.1,2248.6,4.44706173]
[1750586145615,10.041,2249.0,2248.7,4.44700509]
[1750586145822,10.041,2249.0,2248.9,4.44661834]
[1750586146683,10.041,2249.0,2248.2,14.44799348]
[1750586146997,10.041,2249.0,2248.9,4.44661834]
[1750586147782,11.25335379,2249.2,2247.5,4.44925221]
[1750586148021,10.0,2249.0,2248.7,4.44686598]
[1750586148520,0.7639,2249.4,2248.2,0.55]
[1750586148678,3.724,2249.0,2248.9,4.44661834]
[1750586149521,3.724,2249.0,2248.9,4.4910783]
[1750586149720,10.677,2249.5,2249.4,4.44562994]
[1750586150330,10.7868,2249.4,2248.2,0.8167]
[1750586150519,9.979,2249.3,2249.2,4.44602525]
[1750586156249,20.57,2249.5,2249.4,4.44562994]
[1750586156446,3.724,2249.8,2249.7,4.44503711]
[1750586156614,13.601,2249.8,2249.7,4.44503711]
[1750586157215,1.75403728,2249.9,2249.8,4.44483954]
[1750586157414,11.62503728,2249.9,2249.8,4.44483954]
[1750586158727,11.62503728,2249.9,2249.7,4.44503711]
[1750586158728,3.41819101,2249.9,2249.0,4.44632131]
[1750586158947,10.0,2249.7,2249.4,4.44545432]
[1750586159249,0.37174276,2249.7,2249.5,4.44523667]
[1750586159427,0.37174276,2249.7,2249.6,4.4452347]
[1750586159624,10.23574276,2249.7,2249.5,4.44539804]
[1750586159838,10.23574276,2249.7,2249.4,4.44562483]
[1750586160037,10.23574276,2249.7,2249.3,4.44578578]
[1750586160038,12.51494076,2249.7,2249.2,4.44583698]
[1750586160238,12.51494076,2249.7,2249.3,4.44570912]
[1750586160754,12.51494076,2249.7,2249.4,4.44561589]
[1750586160954,12.51494076,2249.7,2249.4,4.44562342]
[1750586161118,10.23574276,2249.7,2249.5,4.44542737]
[1750586161654,0.37174276,2249.7,2249.6,4.4452347]
[1750586161819,13.81874276,2249.7,2249.6,4.4452347]
[1750586162650,13.447,2249.7,2249.6,4.4452347]
[1750586163154,0.8022,2249.8,2249.7,4.44503711]
[1750586163355,14.2162,2249.8,2249.7,4.44503711]
[1750586163657,13.414,2249.8,2249.7,4.44503711]
[1750586163819,14.93080373,2249.8,2248.7,4.44701383]
[1750586164156,13.296,2249.7,2249.3,4.44576376]
[1750586164467,4.445925,2249.3,2248.7,4.44692184]
[1750586164629,9.775,2249.2,2249.0,4.44633547]
[1750586164820,9.774,2249.1,2248.2,4.99800284]
[1750586165026,3.514,2249.0,2248.1,0.8268]
[1750586165363,9.769,2248.9,2248.8,4.44677806]
[1750586165657,10.7676,2248.8,2248.2,4.44787505]
[1750586165855,10.7676,2248.8,2247.8,0.87127811]
[1750586165856,0.7676,2248.8,2247.8,0.87127811]
[1750586166161,3.514,2249.0,2248.9,4.44661834]
[1750586166336,13.266,2249.0,2248.9,4.44661834]
[1750586168360,10.0,2248.9,2247.7,4.4489923]
[1750586168559,10.0,2248.9,2248.7,4.44701383]
[1750586168560,9.728,2248.8,2248.7,4.44701383]
[1750586168762,13.241,2248.8,2248.7,4.4469]
[1750586169136,0.7676,2249.0,2248.9,4.44661834]
[1750586169344,13.231,2249.0,2248.9,4.44661834]
[1750586169764,10.682,2249.3,2249.2,4.44602525]
[1750586169931,23.911,2249.3,2249.2,4.44602525]
[1750586170129,1.75403728,2249.9,2249.8,4.44483954]
[1750586170439,11.82978004,2249.9,2249.8,4.44483954]
[1750586171072,2.12578004,2249.9,2249.8,4.44483954]
[1750586171232,0.37174276,2249.9,2249.8,4.44483954]
[1750586172934,3.514,2250.4,2250.3,4.44385193]
[1750586173129,10.682,2250.7,2250.3,4.44385193]
[1750586173330,20.334,2250.7,2250.6,4.44325957]
[1750586173769,20.33,2250.7,2250.6,4.44325957]
[1750586174656,3.514,2250.9,2250.8,4.44286475]
[1750586174844,0.0569636,2251.2,2251.1,4.44227266]
[1750586175044,9.6819636,2251.2,2251.1,4.44227266]
[1750586175984,9.6819636,2251.2,2250.1,10.3885]
[1750586176201,10.0,2251.1,2250.3,4.44384015]
[1750586176488,14.44236964,2251.1,2250.5,4.443358]
[1750586176696,4.44270056,2250.9,2250.3,4.44375935]
[1750586176893,9.602,2250.8,2250.3,4.44375935]
[1750586177102,3.412,2250.7,2250.6,4.44325957]
[1750586178284,3.412,2250.7,2249.9,4.44464198]
[1750586178455,3.412,2250.7,2250.4,4.44356364]
[1750586178654,3.412,2250.7,2249.9,0.61243253]
[1750586178655,3.412,2250.7,2250.3,4.44381725]
[1750586178855,3.412,2250.7,2250.4,4.44355679]
[1750586179592,3.412,2250.7,2250.4,4.44354254]
[1750586179757,3.412,2250.7,2250.5,4.44343047]
[1750586180693,3.412,2250.7,2250.4,4.44358896]
[1750586180892,3.412,2250.7,2250.6,4.44325957]
[1750586181203,3.412,2250.7,2250.3,4.44377009]
[1750586181384,4.7134,2250.7,2249.4,0.43521028]
[1750586181702,4.7134,2250.7,2249.5,4.44542816]
[1750586181882,9.518,2250.6,2249.5,4.44542816]
[1750586182274,9.518,2250.6,2250.3,4.44373317]
[1750586182771,9.518,2250.6,2250.4,4.44356486]
[1750586183172,9.518,2250.6,2250.5,4.443457]
[1750586185460,12.895,2250.7,2250.6,4.44325957]
[1750586185665,12.895,2250.7,2249.2,4.44602525]
[1750586185666,10.0,2250.5,2249.2,4.44602525]
[1750586186002,10.0,2250.3,2249.8,4.44469871]
[1750586186366,10.0,2250.3,2249.9,4.44463527]
[1750586186568,10.0,2250.3,2249.6,4.44522883]
[1750586186920,10.0,2250.3,2250.0,4.44430849]
[1750586187105,10.0,2250.3,2250.1,4.44423921]
[1750586187397,10.0,2250.3,2250.0,4.44436963]
[1750586187693,10.0,2250.3,2249.1,0.7899]
[1750586187913,13.45764801,2250.3,2249.8,4.44468862]
[1750586188093,13.45764801,2250.3,2249.9,4.4445947]
[1750586188299,13.45764801,2250.3,2249.8,4.44473593]
[1750586188796,13.45764801,2250.3,2249.4,4.44554942]
[1750586188797,4.44441492,2250.1,2249.4,4.44550352]
[1750586188997,4.44441492,2250.1,2248.6,4.44708134]
[1750586188998,10.0,2249.9,2248.7,0.7857]
[1750586189223,10.0,2249.9,2249.2,4.44590982]
[1750586189421,10.0,2249.7,2249.2,4.44590982]
[1750586189719,9.419,2249.6,2249.2,4.44590982]
[1750586190105,9.419,2249.6,2249.3,4.44581811]
[1750586190337,9.419,2249.6,2249.5,4.44543231]
[1750586190634,4.63073398,2250.2,2249.7,4.4449153]
[1750586190803,22.711,2250.1,2249.8,4.44483915]
[1750586191129,22.711,2250.1,2248.9,4.44659104]
[1750586191285,22.711,2250.1,2249.6,4.44519037]
[1750586191713,10.0,2249.7,2248.8,4.44681607]
[1750586191885,9.395,2249.6,2249.2,4.44602488]
[1750586192287,9.395,2249.6,2249.3,4.44579949]
[1750586192815,9.395,2249.6,2249.3,4.44582111]
[1750586193318,0.7963,2249.5,2248.3,5.2083805]
[1750586193478,3.309,2249.4,2249.0,4.44640847]
[1750586193679,9.365,2249.3,2249.0,4.44640847]
[1750586194320,9.365,2249.3,2249.2,4.44602525]
[1750586194499,9.365,2249.3,2249.0,4.44625866]
[1750586194693,9.365,2249.3,2249.1,4.44621016]
[1750586196931,4.44625702,2249.1,2248.5,4.44723965]
[1750586197234,0.7882,2248.9,2248.4,4.44750527]
[1750586197526,3.203,2248.8,2248.5,4.4474007]
[1750586197716,9.303,2248.7,2247.9,5.25154873]
[1750586197919,9.303,2248.7,2248.6,4.44721159]
[1750586198290,9.303,2248.7,2248.5,4.44730159]
[1750586198495,12.499,2248.6,2248.0,4.44839857]
[1750586198710,12.499,2248.6,2248.5,4.44740938]
[1750586199026,12.499,2248.6,2248.4,4.44756134]
[1750586199027,12.499,2248.6,2248.4,4.4476035]
[1750586199796,12.499,2248.6,2248.4,4.44750237]
[1750586200009,12.499,2248.6,2248.5,4.44740938]
[1750586200207,3.204,2248.7,2248.6,4.44714857]
[1750586200412,12.464,2248.7,2248.5,4.44729817]
[1750586200635,12.464,2248.7,2248.3,4.44777688]
[1750586201731,12.464,2248.7,2248.3,4.44771091]
[1750586202038,10.7972,2248.6,2247.8,0.52757923]
[1750586202241,10.0,2248.2,2247.4,4.44958618]
[1750586202537,10.0,2247.8,2246.9,5.25117436]
[1750586202722,9.252,2247.7,2246.9,0.8007]
[1750586202946,9.252,2247.7,2246.6,4.45097702]
[1750586202947,9.75358053,2247.6,2246.6,0.8007]
[1750586203098,0.7972,2247.6,2246.6,5.25185397]
[1750586203306,12.449,2247.5,2247.4,4.4494022]
[1750586203539,12.449,2247.5,2247.3,4.44968957]
[1750586203705,12.449,2247.5,2247.1,4.45004243]
[1750586203706,12.449,2247.5,2247.1,4.45014333]
[1750586203900,12.449,2247.5,2246.7,4.45097253]
[1750586204096,12.449,2247.5,2247.0,4.4502205]
[1750586204341,12.449,2247.5,2246.1,4.45711384]
[1750586204342,10.0,2247.4,2246.2,0.8091]
[1750586204501,10.0,2247.4,2247.1,4.45006689]
[1750586204700,12.44,2247.3,2247.1,4.45015086]
[1750586204905,12.436,2247.2,2247.1,4.45018023]
[1750586205422,12.426,2247.2,2247.1,4.45018023]
[1750586206641,0.23234426,2247.5,2247.4,4.44958618]
[1750586206803,0.23234426,2247.5,2247.4,5.80868618]
[1750586207134,9.64361249,2248.2,2248.1,4.4482007]
[1750586207502,9.205,2248.2,2248.1,4.4482007]
[1750586208338,0.833,2248.1,2247.8,4.44872798]
[1750586208513,3.105,2248.0,2247.8,4.44872798]
[1750586208845,9.2,2247.9,2247.8,4.44872798]
[1750586209728,9.2,2247.9,2247.1,6.23012024]
[1750586209923,9.2,2247.9,2247.8,4.44879437]
[1750586210646,12.274,2247.9,2247.8,4.44879437]
[1750586213745,10.0,2248.4,2247.8,4.44879437]
[1750586214044,0.8175,2248.5,2248.3,4.447805]
[1750586214246,22.237,2248.4,2248.3,4.44769123]
[1750586214845,12.237,2248.4,2248.3,4.44769123]
[1750586215030,3.105,2248.4,2248.3,4.44769123]
[1750586215239,12.233,2248.4,2248.3,4.44769123]
[1750586216246,12.233,2248.4,2248.2,4.44789429]
[1750586216542,12.233,2248.4,2248.1,4.44802652]
[1750586216747,12.233,2248.4,2248.2,4.44798095]
[1750586217250,1.78647833,2248.6,2248.3,4.44771506]
[1750586217420,12.19,2248.5,2248.3,4.44771506]
[1750586217743,12.19,2248.5,2248.0,4.44832969]
[1750586218043,12.19,2248.5,2248.2,4.4480009]
[1750586218247,12.19,2248.5,2248.1,4.44812603]
[1750586218617,12.19,2248.5,2247.5,10.7807]
[1750586218814,1.86800454,2248.4,2247.9,4.44849939]
[1750586219048,9.064,2248.3,2248.0,4.4483766]
[1750586219238,2.04270616,2248.6,2247.7,4.44897515]
[1750586219438,12.072,2248.5,2247.7,4.44897515]
[1750586219636,12.072,2248.5,2247.5,0.7807]
[1750586219838,4.44791658,2248.3,2247.7,4.44889978]
[1750586220050,9.055,2248.2,2247.8,4.44877538]
[1750586220346,12.06,2248.1,2247.9,4.44850343]
[1750586220550,9.052,2248.0,2247.9,4.44850343]
[1750586220846,3.008,2248.1,2248.0,4.44839857]
[1750586221011,0.8016,2248.4,2248.3,4.447805]
[1750586221216,1.78647833,2248.6,2248.4,4.44742179]
[1750586221436,1.78647833,2248.6,2248.4,4.44760718]
[1750586221753,1.78647833,2248.6,2248.5,15.30798816]
[1750586221913,1.78647833,2248.6,2248.5,0.8161]
[1750586221914,10.82947833,2248.6,2248.5,0.8161]
[1750586222114,13.83747833,2248.6,2248.5,4.44740938]
[1750586222351,13.83747833,2248.6,2248.3,4.44770768]
[1750586222517,13.83747833,2248.6,2247.9,5.26450033]
[1750586222851,13.83747833,2248.6,2248.5,4.44740938]
[1750586223036,13.83747833,2248.6,2247.9,0.8161]
[1750586223037,13.83747833,2248.6,2248.3,4.44770639]
[1750586223238,14.49936401,2248.6,2248.1,4.44805686]
[1750586223441,14.49936401,2248.6,2247.9,4.44843386]
[1750586223616,10.55,2248.5,2247.3,0.8161]
[1750586223814,0.8016,2248.2,2247.8,4.44874505]
[1750586224017,9.03,2248.1,2247.3,0.8161]
[1750586224252,26.41288669,2248.0,2246.9,4.4505479]
[1750586224414,26.41279574,2248.0,2247.4,4.44952426]
[1750586224750,12.027,2247.9,2247.4,4.44947914]
[1750586224918,12.027,2247.8,2247.6,4.44908311]
[1750586225435,12.027,2247.8,2247.4,4.44949412]
[1750586225637,12.027,2247.8,2246.7,0.8161]
[1750586226162,12.027,2247.8,2245.6,19.80701793]
[1750586226163,24.17238053,2247.4,2246.1,0.7583]
[1750586226320,10.0,2247.2,2246.1,0.7583]
[1750586226517,10.688,2247.3,2246.6,4.45116066]
[1750586226727,10.688,2247.3,2246.7,0.04451246]
[1750586226923,9.016,2247.2,2247.0,4.45028859]
[1750586227154,9.016,2247.2,2246.4,4.45156695]
[1750586227327,9.016,2247.2,2247.1,4.45018023]
[1750586228627,10.688,2247.3,2247.2,4.4499822]
[1750586228829,13.696,2247.3,2247.2,4.4499822]
[1750586229073,22.698,2247.3,2247.2,4.4499822]
[1750586229425,22.698,2247.3,2247.1,4.45012234]
[1750586229668,22.698,2247.3,2246.9,4.45047204]
[1750586230176,10.805,2247.2,2246.1,4.45700284]
[1750586230335,8.993,2247.1,2246.7,4.45095091]
[1750586230531,8.993,2247.1,2246.1,4.45704756]
[1750586230532,0.805,2246.7,2246.1,4.45704756]
[1750586230727,10.0,2246.5,2246.2,4.45194133]